bitfinex-derivatives/quotes_BTCF0:USTF0_20240820
["timestamp","ask_amount","ask_price","bid_price","bid_amount"]
[1724165975930,0.36105208,59477.0,59476.0,0.067272]
[1724165975931,0.36205208,59477.0,59476.0,0.067272]
[1724165976231,0.36205208,59477.0,59476.0,4e-05]
[1724165976630,0.067233,59476.0,59471.0,0.00871161]
[1724165976928,0.3618,59472.0,59466.0,0.00025186]
[1724165977336,0.3618,59472.0,59471.0,0.067238]
[1724165978027,0.3608,59472.0,59471.0,0.067238]
[1724165978833,0.00225208,59477.0,59476.0,0.067232]
[1724165979023,0.00125208,59477.0,59476.0,0.067232]
[1724165980034,0.00025208,59477.0,59476.0,0.067232]
[1724165980540,0.00125208,59477.0,59476.0,0.067232]
[1724165980835,0.00225208,59477.0,59476.0,0.067232]
[1724165982634,0.00225208,59477.0,59476.0,0.134464]
[1724165982839,0.36305208,59477.0,59476.0,1.038864]
[1724165983027,0.00225208,59477.0,59476.0,0.638864]
[1724165983224,0.00225208,59477.0,59476.0,1.038864]
[1724165983533,0.3608,59484.0,59483.0,0.067224]
[1724165984731,0.00025208,59489.0,59488.0,0.067219]
[1724165985423,0.00025208,59489.0,59488.0,0.07595101]
[1724165986136,0.00025208,59489.0,59488.0,0.07599101]
[1724165986526,0.00325208,59489.0,59488.0,0.07599101]
[1724165986927,0.00425208,59489.0,59488.0,0.07599101]
[1724165987838,0.00125208,59489.0,59488.0,0.07699101]
[1724165988839,0.00025208,59489.0,59488.0,0.07799101]
[1724165989139,0.06747008,59489.0,59488.0,0.00204]
[1724165989536,0.13468808,59489.0,59488.0,0.00204]
[1724165989926,0.06747008,59489.0,59488.0,0.00204]
[1724165990335,0.06747008,59489.0,59488.0,0.00104]
[1724165990834,0.06747008,59489.0,59488.0,0.068259]
[1724165991034,0.00025208,59489.0,59488.0,0.068259]
[1724165991239,0.00325208,59489.0,59488.0,0.972539]
[1724165991442,0.3608,59492.0,59488.0,0.90532]
[1724165991641,0.067218,59489.0,59488.0,0.00104]
[1724165991846,0.134436,59489.0,59488.0,0.00104]
[1724165992338,0.134446,59484.0,59483.0,0.00025208]
[1724165992539,0.3608,59484.0,59465.0,0.1226]
[1724165992735,0.3608,59470.0,59469.0,0.067239]
[1724165993041,0.3608,59484.0,59470.0,0.25220487]
[1724165993243,0.3608,59484.0,59483.0,0.067224]
[1724165993441,0.3608,59484.0,59476.0,0.0500748]
[1724165993741,0.3618,59484.0,59483.0,0.069224]
[1724165994246,0.3618,59484.0,59483.0,0.069264]
[1724165995039,0.3618,59484.0,59483.0,0.068264]
[1724165995749,0.3628,59484.0,59483.0,0.067264]
[1724165995945,0.430023,59484.0,59483.0,0.067264]
[1724165996145,0.430023,59484.0,59483.0,4e-05]
[1724165996336,0.790823,59484.0,59483.0,4e-05]
[1724165996640,0.789823,59484.0,59478.0,0.00025208]
[1724165996841,0.428029,59479.0,59478.0,0.00025208]
[1724165998040,0.36309823,59479.0,59478.0,0.06748208]
[1724165998248,0.001,59479.0,59478.0,0.74839005]
[1724165998437,0.001,59479.0,59478.0,0.75068828]
[1724165998637,0.001,59479.0,59478.0,0.43058031]
[1724165998843,0.068229,59479.0,59478.0,0.43158031]
[1724165999147,0.3618,59479.0,59478.0,0.07078031]
[1724165999657,0.3628,59479.0,59478.0,0.07078031]
[1724166000339,0.3618,59501.0,59500.0,0.067205]
[1724166000645,0.0982353,59512.0,59478.0,1.20950253]
[1724166000646,0.3608,59505.0,59495.0,0.3608]
[1724166000843,0.428,59505.0,59503.0,0.067202]
[1724166001039,0.4355,59504.0,59493.0,0.0014]
[1724166001233,0.3608,59494.0,59484.0,0.04913561]
[1724166001545,0.3608,59498.0,59495.0,0.067211]
[1724166001844,0.788808,59498.0,59495.0,0.067211]
[1724166002041,0.067209,59497.0,59495.0,0.067211]
[1724166002543,0.7216,59498.0,59492.0,0.067214]
[1724166002544,0.001,59494.0,59492.0,0.067214]
[1724166002733,0.3608,59493.0,59489.0,0.00025208]
[1724166002935,0.067217,59490.0,59489.0,0.00025208]
[1724166003538,0.3608,59491.0,59480.0,0.00895378]
[1724166003758,0.3608,59482.0,59479.0,0.067229]
[1724166004337,0.3608,59482.0,59480.0,0.067228]
[1724166004544,0.3583,59482.0,59480.0,0.067228]
[1724166004948,0.3583,59482.0,59478.0,0.00229823]
[1724166005148,0.067229,59479.0,59478.0,0.00229823]
[1724166005946,0.067228,59480.0,59478.0,0.00229823]
[1724166006243,0.428027,59481.0,59480.0,0.01196]
[1724166006644,0.495254,59481.0,59480.0,0.01196]
[1724166006845,0.999614,59481.0,59480.0,0.01196]
[1724166007037,0.067232,59476.0,59469.0,0.00878667]
[1724166007243,0.067242,59468.0,59464.0,0.067246]
[1724166007442,0.3608,59465.0,59464.0,0.067246]
[1724166008241,0.428045,59465.0,59464.0,4e-05]
[1724166008954,0.429045,59465.0,59464.0,0.01004]
[1724166009652,0.933565,59465.0,59464.0,0.01004]
[1724166009950,0.067255,59456.0,59452.0,0.06827607]
[1724166010157,0.3628,59465.0,59452.0,0.00101707]
[1724166010158,0.3608,59458.0,59452.0,0.00101707]
[1724166010459,0.3628,59465.0,59452.0,0.00101707]
[1724166010460,0.3628,59465.0,59464.0,0.067246]
[1724166011251,0.3628,59465.0,59464.0,0.070246]
[1724166011466,0.067246,59464.0,59436.0,0.3608]
[1724166011645,0.067246,59464.0,59419.0,0.11607423]
[1724166011646,0.36076,59427.0,59411.0,0.08370963]
[1724166011960,0.26792399,59463.0,59419.0,0.3608]
[1724166011961,0.3608,59424.0,59419.0,0.3608]
[1724166012253,0.3608,59435.0,59420.0,0.23544]
[1724166012442,0.00018486,59434.0,59423.0,0.4355]
[1724166012646,0.00018486,59434.0,59421.0,0.06687284]
[1724166012647,0.3608,59424.0,59422.0,0.067293]
[1724166013244,0.3618,59424.0,59422.0,0.067293]
[1724166013855,0.3608,59427.0,59426.0,0.067289]
[1724166014050,0.3608,59427.0,59426.0,0.302769]
[1724166014248,0.3608,59427.0,59426.0,0.2511749]
[1724166014448,0.3608,59427.0,59421.0,0.09271189]
[1724166014845,0.3608,59427.0,59426.0,0.067289]
[1724166015051,0.3618,59427.0,59426.0,0.067289]
[1724166015355,0.0002523,59429.0,59428.0,0.067287]
[1724166015754,0.0002523,59429.0,59428.0,0.25397417]
[1724166015958,0.0002523,59429.0,59428.0,3.797287]
[1724166016257,0.0002523,59429.0,59428.0,4.55566535]
[1724166016653,0.0002523,59429.0,59428.0,4.55570535]
[1724166016851,0.0012523,59429.0,59428.0,4.55770535]
[1724166017055,0.3608,59433.0,59432.0,0.067282]
[1724166017552,0.7216,59433.0,59428.0,0.01082459]
[1724166017857,0.788881,59433.0,59432.0,3.73]
[1724166018053,0.067286,59429.0,59428.0,0.01082459]
[1724166018555,0.1169,59432.0,59418.0,3.81403]
[1724166018854,0.32718,59419.0,59418.0,3.881328]
[1724166019057,0.29356,59419.0,59418.0,3.881328]
[1724166019361,0.293617,59419.0,59418.0,3.81403]
[1724166019665,0.259997,59419.0,59418.0,3.81403]
[1724166019851,0.76571817,59419.0,59418.0,3.81403]
[1724166020048,1.16571817,59419.0,59418.0,3.81403]
[1724166020265,1.16571817,59419.0,59410.0,0.00020921]
[1724166020266,1.25942117,59419.0,59410.0,0.00020921]
[1724166020575,1.25942117,59419.0,59393.0,0.067326]
[1724166020576,0.067309,59409.0,59393.0,0.067326]
[1724166020862,0.067309,59409.0,59377.0,0.502844]
[1724166020863,0.3608,59402.0,59389.0,0.4355]
[1724166021050,0.3608,59402.0,59390.0,0.06733]
[1724166021051,0.32718,59402.0,59390.0,0.06733]
[1724166021251,0.29356,59402.0,59401.0,0.151348]
[1724166021448,0.47146,59401.0,59388.0,0.067331]
[1724166021659,0.25998,59389.0,59383.0,0.067338]
[1724166021859,0.7963,59394.0,59387.0,0.03362]
[1724166022047,0.7963,59394.0,59383.0,0.03362]
[1724166022247,0.7963,59394.0,59380.0,0.36939685]
[1724166022248,0.067333,59388.0,59381.0,0.25327838]
[1724166022448,0.7963,59394.0,59389.0,0.00025253]
[1724166022755,0.3608,59393.0,59389.0,0.00025253]
[1724166022958,0.0089144,59402.0,59389.0,0.20197253]
[1724166023159,0.0089144,59402.0,59375.0,0.0001507]
[1724166023160,0.3608,59398.0,59334.0,0.11607423]
[1724166023373,0.0089144,59402.0,59315.0,0.15874489]
[1724166023374,0.3608,59354.0,59315.0,0.15874489]
[1724166023672,0.3608,59354.0,59158.0,2.7293]
[1724166023673,0.3608,59216.0,59205.0,0.09943284]
[1724166023872,0.3608,59216.0,59194.0,0.51094654]
[1724166023873,0.3524,59200.0,59194.0,0.51094654]
[1724166024066,0.3608,59189.0,59149.0,0.0829305]
[1724166024362,0.3608,59178.0,59167.0,0.3608]
[1724166024563,0.3608,59168.0,59167.0,0.5927452]
[1724166024754,0.25,59180.0,59167.0,0.5927452]
[1724166024755,0.3608,59182.0,59169.0,0.08403]
[1724166024960,0.3608,59188.0,59170.0,0.50696]
[1724166025152,0.07999092,59203.0,59170.0,0.33859472]
[1724166025351,0.067515,59227.0,59202.0,0.4355]
[1724166025352,0.3608,59219.0,59202.0,0.4355]
[1724166025664,0.03699455,59226.0,59205.0,0.08403]
[1724166025863,0.00012612,59213.0,59205.0,0.05020791]
[1724166026169,0.36080001,59213.0,59206.0,0.22969519]
[1724166026467,1e-08,59213.0,59210.0,0.55684791]
[1724166026649,0.3608,59226.0,59212.0,0.8716]
[1724166026860,0.3608,59252.0,59225.0,0.8716]
[1724166027053,0.3608,59252.0,59226.0,0.23592]
[1724166027054,0.3608,59246.0,59226.0,0.23592]
[1724166027257,0.3608,59244.0,59226.0,0.49062526]
[1724166027453,0.3608,59244.0,59237.0,0.3608]
[1724166027655,0.00013746,59253.0,59243.0,0.3608]
[1724166027963,0.3608,59279.0,59252.0,0.3608]
[1724166027964,0.3608,59274.0,59252.0,0.3608]
[1724166028155,0.067469,59268.0,59244.0,0.73517768]
[1724166028464,0.3608,59264.0,59244.0,0.4821]
[1724166028662,0.3608,59279.0,59263.0,0.3608]
[1724166028861,0.3608,59279.0,59270.0,0.3608]
[1724166029065,7.91e-05,59278.0,59275.0,0.3608]
[1724166029263,0.067423,59309.0,59277.0,0.3608]
[1724166029469,0.3608,59312.0,59304.0,0.3608]
[1724166029659,0.3608,59312.0,59277.0,0.14]
[1724166029660,0.3608,59303.0,59287.0,0.3608]
[1724166029969,0.3608,59290.0,59278.0,0.3608]
[1724166030155,0.3608,59296.0,59279.0,3.77]
[1724166030353,0.3608,59296.0,59283.0,0.3608]
[1724166030558,0.3608,59311.0,59293.0,0.3608]
[1724166030768,0.3608,59311.0,59298.0,0.3608]
[1724166030953,0.3608,59299.0,59282.0,0.3608]
[1724166031156,0.3608,59290.0,59282.0,0.3608]
[1724166031354,0.3608,59285.0,59272.0,0.3608]
[1724166031554,0.3608,59285.0,59277.0,0.3608]
[1724166032069,0.3608,59280.0,59273.0,0.25162297]
[1724166032259,0.3608,59274.0,59264.0,0.3608]
[1724166032456,0.00104001,59280.0,59272.0,0.3608]
[1724166032659,0.3608,59277.0,59261.0,0.3608]
[1724166032962,0.3608,59282.0,59266.0,0.3608]
[1724166033165,0.3608,59282.0,59271.0,0.3608]
[1724166033463,0.3608,59282.0,59266.0,0.3608]
[1724166033665,0.00175838,59271.0,59259.0,0.3608]
[1724166034163,0.3608,59269.0,59259.0,0.3608]
[1724166034359,0.3608,59289.0,59268.0,0.3608]
[1724166034561,0.3608,59289.0,59275.0,0.3608]
[1724166034963,0.3608,59289.0,59268.0,0.3608]
[1724166034964,0.3608,59284.0,59268.0,0.3608]
[1724166035266,0.3608,59271.0,59259.0,0.3608]
[1724166035563,0.3608,59271.0,59258.0,0.00017907]
[1724166035771,0.3608,59259.0,59258.0,0.00017907]
[1724166036271,0.7608,59259.0,59258.0,0.00017907]
[1724166036469,0.3608,59265.0,59258.0,0.00017907]
[1724166036771,0.3646997,59259.0,59258.0,0.00017907]
[1724166036971,0.0002531,59271.0,59258.0,1.26721907]
[1724166037272,0.0002531,59271.0,59258.0,0.72567877]
[1724166037571,0.0002531,59271.0,59259.0,3.77]
[1724166037864,0.0002531,59271.0,59265.0,0.3608]
[1724166038265,0.0002531,59271.0,59270.0,0.36084]
[1724166038565,0.0002531,59271.0,59270.0,4e-05]
[1724166039368,0.0002531,59271.0,59270.0,0.9062]
[1724166039560,0.3608,59277.0,59270.0,4e-05]
[1724166040073,0.3608,59287.0,59270.0,0.36084]
[1724166040260,0.3608,59274.0,59270.0,4e-05]
[1724166040467,0.3608,59272.0,59259.0,0.3608]
[1724166040767,0.3608,59277.0,59268.0,0.3608]
[1724166040964,0.3608,59272.0,59259.0,0.3608]
[1724166041165,0.3608,59290.0,59271.0,0.3608]
[1724166041361,0.3608,59285.0,59280.0,0.3608]
[1724166041563,0.36200001,59308.0,59284.0,0.3608]
[1724166041868,0.3608,59303.0,59296.0,0.3608]
[1724166042069,0.3608,59308.0,59296.0,0.3608]
[1724166042259,0.3608,59298.0,59284.0,0.3608]
[1724166042469,0.067452,59283.0,59266.0,0.00088]
[1724166042766,0.5103,59289.0,59257.0,0.3608]
[1724166042767,0.3608,59272.0,59257.0,0.3608]
[1724166042968,0.5103,59299.0,59255.0,0.067483]
[1724166042969,0.3608,59284.0,59268.0,0.067468]
[1724166043179,0.3608,59284.0,59273.0,0.3608]
[1724166043469,0.3608,59298.0,59279.0,0.3608]
[1724166043661,0.5103,59299.0,59267.0,0.00092]
[1724166043662,0.3608,59291.0,59267.0,0.00092]
[1724166043863,0.3608,59273.0,59266.0,0.3608]
[1724166044068,0.3608,59285.0,59266.0,0.3608]
[1724166044269,0.3608,59285.0,59277.0,0.3608]
[1724166044467,0.3608,59285.0,59283.0,0.0002531]
[1724166044775,0.3608,59291.0,59283.0,0.0002531]
[1724166045279,0.3608,59291.0,59270.0,0.3608]
[1724166045463,0.3608,59291.0,59277.0,0.3608]
[1724166045659,0.5103,59299.0,59259.0,0.2362]
[1724166045660,0.3608,59286.0,59275.0,0.3608]
[1724166045871,0.3608,59280.0,59266.0,0.3608]
[1724166046069,0.428249,59286.0,59266.0,0.3608]
[1724166046070,0.3608,59286.0,59266.0,0.3608]
[1724166046272,0.3608,59281.0,59269.0,0.428267]
[1724166046474,0.3608,59286.0,59269.0,0.428267]
[1724166046673,0.3608,59286.0,59278.0,0.3608]
[1724166046865,0.3608,59293.0,59281.0,0.3608]
[1724166047071,0.3608,59283.0,59279.0,0.067456]
[1724166047367,0.0002531,59283.0,59274.0,0.34389407]
[1724166047564,0.0002531,59283.0,59263.0,0.3608]
[1724166047565,0.3608,59276.0,59263.0,0.3608]
[1724166047882,0.3608,59276.0,59264.0,0.3608]
[1724166048063,0.3610531,59283.0,59276.0,0.067459]
[1724166048265,0.0002531,59283.0,59278.0,0.3608]
[1724166048464,0.0002531,59283.0,59278.0,0.428257]
[1724166048671,0.0002531,59283.0,59274.0,0.3608]
[1724166048874,0.0002531,59283.0,59281.0,0.428254]
[1724166049167,0.3608,59282.0,59266.0,0.3608]
[1724166049476,0.3608,59282.0,59264.0,0.00088]
[1724166049477,0.35116951,59275.0,59264.0,0.3608]
[1724166049681,0.35116951,59275.0,59260.0,3.77]
[1724166049868,0.0002531,59283.0,59259.0,3.37512]
[1724166049869,0.3608,59263.0,59259.0,3.37512]
[1724166050074,0.3608,59262.0,59259.0,3.37512]
[1724166050268,0.3608,59269.0,59259.0,3.37512]
[1724166050479,0.5103,59282.0,59262.0,0.3608]
[1724166050480,0.07831252,59279.0,59262.0,0.3608]
[1724166050778,0.3608,59265.0,59259.0,3.24008263]
[1724166050974,0.3608,59275.0,59259.0,3.24096263]
[1724166050975,0.067464,59273.0,59259.0,3.24096263]
[1724166051177,0.3608,59275.0,59260.0,0.067477]
[1724166051178,0.3608,59267.0,59260.0,0.067477]
[1724166051485,0.43911252,59269.0,59259.0,3.60088263]
[1724166051669,0.3608,59269.0,59261.0,0.3608]
[1724166051976,0.3608,59262.0,59260.0,0.067478]
[1724166052206,0.07831252,59262.0,59259.0,3.24008263]
[1724166052479,0.07831252,59263.0,59262.0,0.067475]
[1724166052684,0.07831252,59264.0,59262.0,0.067475]
[1724166052975,0.0806971,59270.0,59269.0,0.067468]
[1724166053176,0.0806971,59275.0,59269.0,0.3608]
[1724166053385,0.14018194,59274.0,59273.0,0.067463]
[1724166053569,0.04419284,59274.0,59273.0,0.067463]
[1724166053766,0.04419284,59274.0,59269.0,0.3608]
[1724166053767,0.04419284,59274.0,59259.0,2.40880773]
[1724166053970,0.04419284,59274.0,59190.0,0.0176248]
[1724166053971,0.3608,59225.0,59201.0,0.08403]
[1724166054178,0.08079463,59220.0,59201.0,0.50672]
[1724166054371,0.3608,59216.0,59201.0,0.3608]
[1724166054702,0.08078114,59232.0,59214.0,0.3608]
[1724166054976,0.05419361,59255.0,59235.0,0.5103]
[1724166055277,0.04242318,59254.0,59251.0,0.3608]
[1724166055467,0.4,59267.0,59252.0,0.689406]
[1724166055673,0.03834729,59266.0,59253.0,0.067485]
[1724166055872,0.03834729,59266.0,59258.0,0.3608]
[1724166056172,0.03834729,59265.0,59258.0,0.3608]
[1724166056373,0.03834729,59264.0,59258.0,0.3608]
[1724166056581,0.03834729,59263.0,59252.0,0.00092]
[1724166056785,0.03834729,59263.0,50220.0,0.057]
[1724166057081,0.03834729,59263.0,59259.0,0.25162775]
[1724166057270,0.03834729,59263.0,59118.0,0.2154287]
[1724166057271,0.16759071,59262.0,59108.0,2.59257]
[1724166057465,0.5103,59196.0,59085.0,2.68973341]
[1724166057681,0.7216,59086.0,59071.0,0.02389584]
[1724166057874,0.00015992,59085.0,59076.0,0.8711]
[1724166058075,0.067644,59115.0,59076.0,0.5103]
[1724166058289,0.12818178,59122.0,59114.0,0.3608]
[1724166058577,0.067608,59146.0,59114.0,0.3608]
[1724166058578,0.16022723,59153.0,59121.0,0.3608]
[1724166058775,0.16022723,59153.0,59148.0,0.3608]
[1724166059078,0.3608,59170.0,59152.0,3.77]
[1724166059279,0.14420451,59171.0,59156.0,0.3608]
[1724166059280,5.551e-05,59169.0,59156.0,0.3608]
[1724166059578,0.51145551,59169.0,59161.0,0.3608]
[1724166059779,5.551e-05,59169.0,59168.0,0.3608]
[1724166060085,0.3608,59183.0,59166.0,0.3608]
[1724166060269,0.0107805,59226.0,59130.0,0.02536]
[1724166060270,0.3608,59209.0,59180.0,4.4916]
[1724166060467,0.428346,59201.0,59188.0,0.3608]
[1724166060671,0.067546,59201.0,59195.0,0.3608]
[1724166060868,0.7303,59213.0,59200.0,0.7216]
[1724166060869,0.797831,59213.0,59200.0,0.7216]
[1724166061069,0.067521,59222.0,59210.0,0.3608]
[1724166061277,0.067521,59222.0,59217.0,0.3608]
[1724166061474,0.3608,59241.0,59217.0,0.3608]
[1724166061680,0.3608,59228.0,59217.0,0.3608]
[1724166061874,0.3608,59222.0,59208.0,0.3608]
[1724166062075,0.5108,59228.0,59187.0,0.00021541]
[1724166062076,0.002,59228.0,59217.0,0.3608]
[1724166062380,0.3608,59236.0,59227.0,0.3608]
[1724166062777,0.50648,59235.0,59222.0,0.3608]
[1724166062982,0.3608,59223.0,59216.0,0.3608]
[1724166063184,0.3608,59217.0,59199.0,0.3608]
[1724166063484,0.3608,59224.0,59216.0,0.3608]
[1724166064082,0.00025342,59237.0,59223.0,0.3608]
[1724166064277,0.00025342,59237.0,59236.0,0.3608]
[1724166064585,0.00025342,59237.0,59236.0,0.27636369]
[1724166064880,0.90669342,59237.0,59228.0,0.3608]
[1724166065078,0.7303,59234.0,59221.0,0.3608]
[1724166065276,0.3608,59231.0,59221.0,0.3608]
[1724166065582,0.3608,59231.0,59190.0,0.23644]
[1724166065583,0.428322,59222.0,59207.0,0.3608]
[1724166065782,0.7303,59218.0,59212.0,0.3608]
[1724166065980,0.9003,59218.0,59205.0,0.3608]
[1724166066175,1.1303,59218.0,59210.0,0.3608]
[1724166066383,0.00188001,59221.0,59217.0,0.3608]
[1724166066577,0.14,59221.0,59215.0,0.3608]
[1724166066783,1.09314,59227.0,59215.0,0.3608]
[1724166067082,0.3608,59227.0,59215.0,0.3608]
[1724166067286,0.3608,59227.0,59220.0,0.3608]
[1724166067781,0.3608,59227.0,59215.0,0.3608]
[1724166067782,0.50656,59226.0,59215.0,0.3608]
[1724166067985,0.65656,59226.0,59215.0,0.3608]
[1724166068291,0.067525,59219.0,59215.0,0.3608]
[1724166068480,0.067538,59208.0,59187.0,0.36101541]
[1724166068678,0.3608,59196.0,59187.0,0.36101541]
[1724166068878,0.3608,59204.0,59194.0,0.3608]
[1724166069275,0.00188001,59218.0,59203.0,0.3608]
[1724166069590,0.3608,59219.0,59203.0,0.3608]
[1724166069779,0.5008,59219.0,59203.0,0.3608]
[1724166069979,1.40748,59219.0,59203.0,0.3608]
[1724166070183,1.40748,59219.0,59193.0,0.3608]
[1724166070184,0.3608,59207.0,59193.0,0.3608]
[1724166070487,0.428329,59216.0,59193.0,0.3608]
[1724166070783,0.428329,59216.0,59187.0,0.00021541]
[1724166070784,0.00196,59218.0,59214.0,0.3608]
[1724166070984,0.3608,59223.0,59214.0,0.30167728]
[1724166071178,0.3608,59215.0,59206.0,0.3608]
[1724166071377,0.16,59215.0,59206.0,0.3608]
[1724166071683,0.00025342,59217.0,59206.0,0.3608]
[1724166071885,0.00025342,59217.0,59191.0,3.77]
[1724166071886,0.3608,59208.0,59193.0,0.3608]
[1724166072195,0.3608,59194.0,59173.0,0.3608]
[1724166072392,0.067563,59186.0,59173.0,0.3608]
[1724166072685,1.23644,59193.0,59164.0,0.35308]
[1724166072686,0.00188001,59193.0,59183.0,0.3608]
[1724166072881,0.00025342,59217.0,59192.0,0.3608]
[1724166073082,0.73148001,59218.0,59202.0,0.3608]
[1724166073388,0.067536,59209.0,59202.0,0.3608]
[1724166073683,0.067536,59209.0,59192.0,0.3608]
[1724166073684,0.16,59209.0,59201.0,0.3608]
[1724166074076,0.50672,59208.0,59187.0,0.3608]
[1724166074279,0.50672,59208.0,59174.0,0.11126381]
[1724166074280,0.3608,59188.0,59176.0,0.3608]
[1724166074476,0.00013303,59187.0,59176.0,0.3608]
[1724166074675,0.00013303,59187.0,59177.0,3.77]
[1724166074676,0.3608,59185.0,59177.0,3.77]
[1724166074876,0.00013303,59187.0,59177.0,3.77]
[1724166075382,0.00013303,59187.0,59123.0,0.7296]
[1724166075383,0.3608,59178.0,59155.0,0.3608]
[1724166075692,0.5008,59178.0,59161.0,0.3608]
[1724166075889,0.14,59178.0,59164.0,3.77]
[1724166076184,0.3608,59167.0,59150.0,0.1101]
[1724166076379,0.3608,59162.0,59150.0,0.1101]
[1724166076575,0.5208,59162.0,59150.0,0.1101]
[1724166076980,0.58839,59162.0,59150.0,0.1101]
[1724166077282,0.00202165,59166.0,59157.0,0.3608]
[1724166077484,0.00014164,59166.0,59157.0,0.3608]
[1724166077687,0.00014164,59166.0,59164.0,0.3608]
[1724166078396,0.40014164,59166.0,59157.0,0.34551]
[1724166078579,0.3608,59158.0,59156.0,0.01529]
[1724166078984,0.50712,59157.0,59156.0,0.01529]
[1724166079187,1.07712,59157.0,59156.0,0.01529]
[1724166079492,0.90712,59157.0,59156.0,0.01529]
[1724166079684,1.26792,59157.0,59156.0,0.01529]
[1724166080088,1.42813493,59157.0,59144.0,7.1206]
[1724166080287,0.7216,59145.0,59144.0,7.1206]
[1724166080591,0.00012942,59145.0,59144.0,7.1206]
[1724166080781,1e-08,59145.0,59144.0,7.1206]
[1724166081390,0.94609092,59145.0,59144.0,7.1206]
[1724166081583,0.18529092,59145.0,59144.0,7.1206]
[1724166081977,0.01529092,59145.0,59144.0,7.1206]
[1724166082193,0.92253092,59145.0,59144.0,7.1206]
[1724166082388,1.06253092,59145.0,59144.0,6.46807681]
[1724166082689,1.06253091,59145.0,59144.0,5.67852381]
[1724166082887,1.24983342,59145.0,59144.0,4.25163781]
[1724166083187,1.06268277,59145.0,59144.0,4.16359281]
[1724166083392,1.06253091,59145.0,59144.0,3.82681369]
[1724166083579,1.06253091,59145.0,59144.0,3.76052369]
[1724166083781,0.74091824,59145.0,59144.0,3.64312369]
[1724166083990,1.88995487,59145.0,59144.0,0.64117269]
[1724166084184,1.9854904,59145.0,59144.0,0.06968465]
[1724166084484,1.9854904,59145.0,59144.0,6.5e-07]
[1724166084485,0.70171824,59145.0,59144.0,6.5e-07]
[1724166084692,0.70192114,59145.0,59144.0,6.5e-07]
[1724166084888,0.17549381,59145.0,59144.0,6.5e-07]
[1724166085084,0.17549381,59145.0,59141.0,0.30159922]
[1724166085286,0.24310281,59145.0,59141.0,0.25085719]
[1724166085491,0.17549381,59145.0,59141.0,0.25085719]
[1724166085896,0.17549381,59145.0,59141.0,0.19166414]
[1724166086082,0.17549381,59145.0,59143.0,0.067611]
[1724166086482,0.00025342,59150.0,59143.0,0.067611]
[1724166086483,0.00025342,59150.0,59149.0,0.067604]
[1724166086693,0.3608,59172.0,59149.0,0.3608]
[1724166086891,0.49206983,59196.0,59177.0,2.096532]
[1724166087090,0.5308,59196.0,59182.0,0.3608]
[1724166087486,4.691e-05,59195.0,59182.0,0.3608]
[1724166087686,0.14004691,59195.0,59184.0,2.02896]
[1724166087887,0.14004691,59195.0,59172.0,3.88458]
[1724166087888,0.14004691,59195.0,59175.0,0.3608]
[1724166088089,0.14004691,59195.0,59180.0,0.3608]
[1724166088295,0.3608,59189.0,59180.0,0.3608]
[1724166088496,4.691e-05,59195.0,59188.0,2.02896]
[1724166088689,0.06371883,59207.0,59194.0,2.38976]
[1724166088888,0.06371883,59207.0,59188.0,0.00088]
[1724166088889,0.3608,59204.0,59188.0,0.00088]
[1724166089105,0.5308,59204.0,59186.0,0.3608]
[1724166089287,0.5308,59204.0,59187.0,2.02896]
[1724166089490,0.5308,59204.0,59183.0,0.00025342]
[1724166089491,0.067564,59184.0,59183.0,0.00025342]
[1724166089686,0.5208,59184.0,59172.0,0.1137]
[1724166089996,0.16,59184.0,59173.0,0.3608]
[1724166090385,0.06371883,59189.0,59178.0,2.02896]
[1724166090696,0.06371883,59189.0,59179.0,0.3608]
[1724166090697,0.3608,59184.0,59179.0,0.3608]
[1724166090895,0.3608,59184.0,59172.0,0.1137]
[1724166090896,0.5308,59184.0,59172.0,0.1137]
[1724166091100,0.3608,59184.0,59174.0,2.02896]
[1724166091300,0.3608,59179.0,59172.0,0.1137]
[1724166091486,0.06405341,59193.0,59180.0,2.02896]
[1724166091687,0.3608,59191.0,59177.0,0.3608]
[1724166091997,0.5008,59191.0,59172.0,0.4745]
[1724166092197,0.3608,59176.0,59172.0,0.1137]
[1724166092387,0.067577,59173.0,59172.0,0.1137]
[1724166092590,0.3608,59176.0,59165.0,0.3608]
[1724166092793,0.3608,59181.0,59172.0,0.3608]
[1724166092990,0.3608,59181.0,59179.0,2.02896]
[1724166093191,0.3608,59181.0,59172.0,2.38976]
[1724166093792,0.3608,59181.0,59158.0,0.1096]
[1724166093793,0.3608,59175.0,59158.0,0.1096]
[1724166093997,0.3608,59166.0,59165.0,2.02896]
[1724166094198,0.067573,59177.0,59165.0,2.02896]
[1724166094392,0.3608,59167.0,59158.0,0.1096]
[1724166095203,0.3608,59161.0,59158.0,0.1096]
[1724166095401,0.3608,59159.0,59144.0,0.3760909]
[1724166096008,0.3608,59151.0,59144.0,0.3760909]
[1724166096511,0.067598,59155.0,59144.0,0.3760909]
[1724166096901,0.00025342,59155.0,59149.0,0.3608]
[1724166097301,0.00025342,59155.0,59154.0,0.3608]
[1724166097501,0.00025342,59155.0,59154.0,2.38976]
[1724166097804,0.3608,59170.0,59154.0,2.38976]
[1724166097805,0.3608,59176.0,59154.0,3.98976]
[1724166098005,0.06409704,59179.0,59171.0,0.7216]
[1724166098204,0.06409704,59185.0,59178.0,0.067571]
[1724166098397,0.06409704,59185.0,59177.0,0.3608]
[1724166098398,0.06409704,59183.0,59177.0,0.3608]
[1724166098595,0.06409704,59185.0,59177.0,0.3608]
[1724166098909,0.06409704,59186.0,59179.0,2.096529]
[1724166099097,0.00025342,59186.0,59178.0,0.3608]
[1724166099298,0.06409704,59187.0,59179.0,2.02896]
[1724166099598,0.06409704,59197.0,59186.0,0.3608]
[1724166099804,0.06409704,59199.0,59197.0,2.02896]
[1724166100010,0.06409704,59199.0,59196.0,0.3608]
[1724166100303,0.0795993,59201.0,59196.0,2.02896]
[1724166100498,0.0795993,59201.0,59170.0,0.00016323]